fUST/lending_fUST_20250505
["ID","MTS","AMOUNT","RATE_DAILY","PERIOD"]
[359969906,1746455432702,-477.7714435,0.00032659,27]
[359969907,1746455432712,-320.46150219,0.00032899,2]
[359969908,1746455432721,-180.7931266,0.00032965,2]
[359969909,1746455432731,-207.4,0.00032965,2]
[359969910,1746455432740,-5000.0,0.00033,30]
[359969912,1746455432750,-3000.0,0.00033151,2]
[359969913,1746455432761,-270.199163,0.00033165,2]
[359969914,1746455432771,-477.7714435,0.00033176,28]
[359969915,1746455432780,-461.26311697,0.00033471,2]
[359969916,1746455432790,-477.7714435,0.00033693,29]
[359969917,1746455432799,-278.89835736,0.0003421,30]
[359969918,1746455433018,-198.87308614,0.0003421,30]
[359969919,1746455433029,-3557.81881687,0.00034247,2]
[359969920,1746455433039,-215.0738,0.00034334,2]
[359969921,1746455433048,-156.8881293,0.00034355,4]
[359969922,1746455433058,-477.7714435,0.00034728,31]
[359969923,1746455433067,-223.77973939,0.00034797,2]
[359969924,1746455433077,-190.0,0.000348,7]
[359969925,1746455433086,-190.16684645,0.000348,10]
[359969926,1746455433096,-160.0,0.00034873,2]
[359969927,1746455433104,-160.0,0.00034873,2]
[359969928,1746455433114,-6744.64669677,0.00034897,2]
[359969929,1746455433130,-2653.27392777,0.00034897,2]
[359969930,1746455433140,-191.0,0.000349,14]
[359969931,1746455433151,-160.0,0.00034906,2]
[359969932,1746455433160,-9348.37855375,0.00034907,2]
[359969953,1746455438667,-545.0,0.00033926,2]
[359969954,1746455438677,-35190.83756982,0.00034907,2]
[359969955,1746455438686,-223.77973939,0.00034977,2]
[359969956,1746455438696,-403.0,0.00034987,2]
[359969957,1746455438706,-226.0285,0.00035,5]
[359969958,1746455438718,-500.0,0.00035,5]
[359969959,1746455438728,-500.0,0.00035,5]
[359969960,1746455438738,-506.08488989,0.00035,5]
[359969961,1746455438748,-500.0,0.00035,5]
[359969962,1746455438758,-500.0,0.00035,5]
[359969963,1746455438768,-223.77973939,0.00035157,2]
[359969964,1746455438777,-500.0,0.00035164,120]
[359969965,1746455438787,-500.0,0.00035164,120]
[359969966,1746455438797,-10246.79938847,0.000352,2]
[359969967,1746455438809,-477.7714435,0.00035245,32]
[359969968,1746455438821,-223.77973939,0.00035336,2]
[359969969,1746455438831,-633.6772942,0.00035347,2]
[359969970,1746455438841,-160.0,0.00035373,3]
[359969971,1746455438852,-9397.92062454,0.00035478,3]
[359969972,1746455438861,-841.77443764,0.00035478,3]
[359969973,1746455438871,-160.0,0.00035478,3]
[359969974,1746455438881,-811.34,0.00035478,3]
[359969975,1746455438891,-405.67,0.00035478,3]
[359969976,1746455438901,-202.84,0.00035478,3]
[359969977,1746455438910,-608.53,0.00035486,3]
[359969978,1746455438921,-15279.85309591,0.00035488,2]
[359969979,1746455438934,-26670.98067992,0.00035488,2]
[359969980,1746455438944,-18795.8412491,0.00035496,3]
[359969981,1746455438954,-421.83547488,0.00035496,3]
[359969982,1746455438964,-182.23035355,0.00035496,3]
[359969983,1746455438974,-160.0,0.00035496,3]
[359969984,1746455438984,-9331.45851359,0.00035496,3]
[359969985,1746455438994,-9397.92062454,0.00035496,3]
[359969986,1746455439008,-65785.4443718,0.00035506,3]
[359969987,1746455439018,-160.0,0.00035506,3]
[359969988,1746455439029,-160.0,0.00035506,3]
[359969989,1746455439038,-313048.83812681,0.00035516,2]
[359969990,1746455439062,-56951.16187319,0.00035516,2]
[359969991,1746455439072,-223.77973939,0.00035516,2]
[359969992,1746455439083,-1100.0,0.00035534,60]
[359969993,1746455439093,-9397.92062454,0.0003559,3]
[359969994,1746455439103,-9397.92062454,0.00035596,3]
[359969995,1746455439113,-18262.43,0.000356,30]
[359969996,1746455439122,-1698.22,0.000356,7]
[359969997,1746455439131,-5480.7,0.000356,30]
[359969998,1746455439141,-160.0,0.000356,30]
[359969999,1746455439150,-421.83547488,0.000356,30]
[359970000,1746455439160,-160.0,0.00035606,3]
[359970001,1746455439169,-461.26311697,0.00035614,2]
[359970002,1746455439181,-467.29,0.00035616,14]
[359970003,1746455439190,-500.0,0.00035616,14]
[359970004,1746455439200,-400.0,0.00035616,14]
[359970005,1746455439209,-400.0,0.00035616,14]
[359970006,1746455439219,-400.0,0.00035616,14]
[359970007,1746455439228,-400.0,0.00035616,14]
[359970008,1746455439238,-400.0,0.00035616,14]
[359970009,1746455439247,-400.0,0.00035616,14]
[359970010,1746455439257,-400.0,0.00035616,14]
[359970011,1746455439266,-400.0,0.00035616,14]
[359970012,1746455439275,-286.60870845,0.00035616,14]
[359970013,1746455439284,-400.0,0.00035616,14]
[359970014,1746455439294,-560.78,0.00035616,14]
[359970015,1746455439303,-400.0,0.00035616,14]
[359970016,1746455439312,-546.77758596,0.00035616,14]
[359970017,1746455439322,-400.0,0.00035616,14]
[359970018,1746455439331,-400.0,0.00035616,14]
[359970019,1746455439341,-321.8010885,0.00035616,14]
[359970020,1746455439350,-400.0,0.00035616,14]
[359970021,1746455439359,-400.0,0.00035616,14]
[359970022,1746455439369,-400.0,0.00035616,14]
[359970023,1746455439379,-400.0,0.00035616,14]
[359970024,1746455439389,-313.28267495,0.00035616,14]
[359970025,1746455439398,-400.0,0.00035616,14]
[359970026,1746455439408,-300.62097295,0.00035616,14]
[359970027,1746455439417,-488.6,0.00035616,14]
[359970028,1746455439428,-163.42048272,0.00035616,14]
[359970029,1746455439438,-400.0,0.00035616,14]
[359970030,1746455439448,-400.0,0.00035616,14]
[359970031,1746455439457,-360.70200507,0.00035616,14]
[359970114,1746455441700,-39.29799493,0.00035616,14]
[359970116,1746455441714,-400.0,0.00035616,14]
[359970119,1746455441727,-779.78,0.00035616,14]
[359970121,1746455441741,-625.23,0.00035616,14]
[359970124,1746455441755,-400.0,0.00035616,14]
[359970126,1746455441768,-400.0,0.00035616,14]
[359970129,1746455441780,-400.0,0.00035616,14]
[359970131,1746455441793,-546.13084289,0.00035616,14]
[359970134,1746455441806,-400.0,0.00035616,14]
[359970136,1746455441819,-400.0,0.00035616,14]
[359970138,1746455441831,-400.0,0.00035616,14]
[359970141,1746455441844,-400.0,0.00035616,14]
[359970143,1746455441857,-400.0,0.00035616,14]
[359970146,1746455441870,-400.0,0.00035616,14]
[359970148,1746455441882,-400.0,0.00035616,14]
[359970150,1746455441895,-400.0,0.00035616,14]
[359970153,1746455441908,-400.0,0.00035616,14]
[359970155,1746455441921,-400.0,0.00035616,14]
[359970158,1746455441934,-402.09651185,0.00035616,14]
[359970160,1746455441947,-422.44454389,0.00035616,14]
[359970162,1746455441959,-245.38757818,0.00035616,14]
[359970165,1746455441972,-400.0,0.00035616,14]
[359970167,1746455441985,-525.21850622,0.00035616,14]
[359970170,1746455441999,-400.0,0.00035616,14]
[359970172,1746455442013,-400.0,0.00035616,14]
[359970174,1746455442026,-400.0,0.00035616,14]
[359970177,1746455442039,-400.0,0.00035616,14]
[359970179,1746455442052,-491.49,0.00035616,14]
[359970181,1746455442065,-400.0,0.00035616,14]
[359970184,1746455442080,-400.0,0.00035616,14]
[359970186,1746455442093,-400.0,0.00035616,14]
[359970188,1746455442106,-400.0,0.00035616,14]
[359970191,1746455442118,-400.0,0.00035616,14]
[359970193,1746455442132,-400.0,0.00035616,14]
[359970196,1746455442145,-400.0,0.00035616,14]
[359970198,1746455442157,-400.0,0.00035616,14]
[359970200,1746455442171,-400.0,0.00035616,14]
[359970203,1746455442182,-400.0,0.00035616,14]
[359970205,1746455442191,-474.67,0.00035616,14]
[359970207,1746455442201,-444.31,0.00035616,14]
[359970209,1746455442211,-356.24062358,0.00035616,14]
[359970211,1746455442221,-400.0,0.00035616,14]
[359970213,1746455442230,-400.0,0.00035616,14]
[359970215,1746455442239,-400.0,0.00035616,14]
[359970217,1746455442250,-411.41247145,0.00035616,14]
[359970219,1746455442259,-400.0,0.00035616,14]
[359970221,1746455442268,-400.0,0.00035616,14]
[359970223,1746455442278,-400.0,0.00035616,14]
[359970245,1746455442472,-400.0,0.00035616,14]
[359970249,1746455442495,-406.69462422,0.00035616,14]
[359970252,1746455442512,-400.0,0.00035616,14]
[359970254,1746455442522,-400.0,0.00035616,14]
[359970256,1746455442532,-232.09874793,0.00035616,14]
[359970258,1746455442541,-401.55887692,0.00035616,14]
[359970260,1746455442551,-649.11,0.00035616,14]
[359970262,1746455442561,-400.0,0.00035616,14]
[359970264,1746455442570,-1180.0,0.00035616,14]
[359970266,1746455442579,-400.0,0.00035616,2]
[359970268,1746455442588,-518.84,0.00035616,14]
[359970270,1746455442598,-400.0,0.00035616,14]
[359970272,1746455442607,-400.0,0.00035616,14]
[359970274,1746455442617,-464.52968277,0.00035616,2]
[359970276,1746455442626,-400.0,0.00035616,14]
[359970278,1746455442636,-400.0,0.00035616,2]
[359970280,1746455442645,-400.0,0.00035616,2]
[359970282,1746455442654,-400.0,0.00035616,14]
[359970284,1746455442664,-400.0,0.00035616,14]
[359970287,1746455442674,-400.0,0.00035616,14]
[359970288,1746455442683,-307.04314103,0.00035616,14]
[359970291,1746455442692,-400.0,0.00035616,14]
[359970292,1746455442702,-534.55,0.00035616,14]
[359970294,1746455442710,-542.83,0.00035616,14]
[359970296,1746455442720,-400.0,0.00035616,14]
[359970299,1746455442729,-400.0,0.00035616,14]
[359970300,1746455442739,-400.0,0.00035616,14]
[359970303,1746455442748,-400.0,0.00035616,14]
[359970305,1746455442757,-400.0,0.00035616,14]
[359970306,1746455442767,-400.0,0.00035616,14]
[359970308,1746455442776,-400.0,0.00035616,14]
[359970310,1746455442785,-1753.87,0.00035616,14]
[359970312,1746455442795,-400.0,0.00035616,14]
[359970314,1746455442805,-500.0,0.00035616,14]
[359970316,1746455442814,-509.56,0.00035616,14]
[359970318,1746455442824,-400.0,0.00035616,14]
[359970320,1746455442834,-406.91929102,0.00035616,14]
[359970322,1746455442843,-315.44902119,0.00035616,14]
[359970324,1746455442853,-400.0,0.00035616,14]
[359970326,1746455442862,-416.84,0.00035616,14]
[359970328,1746455442872,-400.0,0.00035616,14]
[359970330,1746455442882,-2545.87,0.00035616,14]
[359970332,1746455442891,-1869.69,0.00035616,14]
[359970334,1746455442901,-400.0,0.00035616,14]
[359970336,1746455442911,-821.36,0.00035616,14]
[359970338,1746455442920,-734.44,0.00035616,14]
[359970340,1746455442930,-682.33,0.00035616,14]
[359970342,1746455442939,-400.0,0.00035616,14]
[359970344,1746455442949,-407.15428407,0.00035616,14]
[359970347,1746455442960,-400.0,0.00035616,14]
[359970348,1746455442969,-400.0,0.00035616,14]
[359970351,1746455442979,-443.6,0.00035616,14]
[359970353,1746455442989,-402.84023441,0.00035616,14]
[359970355,1746455442999,-208.83459303,0.00035616,2]
[359970357,1746455443014,-405.54412597,0.00035616,14]
[359970359,1746455443024,-400.0,0.00035616,14]
[359970361,1746455443033,-3652.84,0.00035616,14]
[359970363,1746455443042,-400.0,0.00035616,14]
[359970364,1746455443053,-400.0,0.00035616,14]
[359970366,1746455443062,-205.43486957,0.00035616,14]
[359970369,1746455443071,-402.03251406,0.00035616,14]
[359970370,1746455443081,-400.0,0.00035616,14]
[359970372,1746455443090,-400.0,0.00035616,14]
[359970375,1746455443099,-400.0,0.00035616,14]
[359970378,1746455443109,-735.31,0.00035616,14]
[359970379,1746455443118,-430.29671248,0.00035616,14]
[359970382,1746455443128,-400.0,0.00035616,14]
[359970385,1746455443137,-309.83822074,0.00035616,14]
[359970388,1746455443146,-500.0,0.00035616,14]
[359970391,1746455443156,-416.90798077,0.00035616,14]
[359970393,1746455443165,-400.0,0.00035616,14]
[359970396,1746455443175,-400.0,0.00035616,14]
[359970398,1746455443185,-400.0,0.00035616,14]
[359970400,1746455443195,-720.28,0.00035616,14]
[359970402,1746455443204,-596.71,0.00035616,14]
[359970405,1746455443213,-400.0,0.00035616,14]
[359970407,1746455443223,-400.0,0.00035616,14]
[359970409,1746455443233,-400.0,0.00035616,14]
[359970411,1746455443242,-400.0,0.00035616,14]
[359970413,1746455443251,-400.0,0.00035616,14]
[359970415,1746455443261,-400.0,0.00035616,14]
[359970417,1746455443270,-400.0,0.00035616,14]
[359970419,1746455443280,-719.44,0.00035616,14]
[359970421,1746455443289,-400.0,0.00035616,14]
[359970423,1746455443298,-400.0,0.00035616,14]
[359970425,1746455443307,-400.0,0.00035616,14]
[359970428,1746455443316,-400.0,0.00035616,14]
[359970431,1746455443326,-400.0,0.00035616,14]
[359970433,1746455443336,-400.0,0.00035616,14]
[359970435,1746455443345,-400.0,0.00035616,14]
[359970437,1746455443354,-400.0,0.00035616,14]
[359970439,1746455443363,-400.0,0.00035616,14]
[359970441,1746455443372,-400.0,0.00035616,14]
[359970443,1746455443381,-400.0,0.00035616,14]
[359970445,1746455443391,-400.0,0.00035616,14]
[359970447,1746455443400,-400.0,0.00035616,14]
[359970449,1746455443409,-400.0,0.00035616,14]
[359970450,1746455443418,-400.0,0.00035616,14]
[359970452,1746455443428,-304.06719554,0.00035616,14]
[359970454,1746455443438,-400.0,0.00035616,14]
[359970456,1746455443447,-1268.31,0.00035616,14]
[359970458,1746455443456,-400.0,0.00035616,14]
[359970459,1746455443465,-400.0,0.00035616,14]
[359970460,1746455443475,-400.0,0.00035616,14]
[359970462,1746455443484,-855.11,0.00035616,14]
[359970463,1746455443494,-400.0,0.00035616,14]
[359970464,1746455443503,-540.21867292,0.00035616,14]
[359970465,1746455443513,-401.94791511,0.00035616,14]
[359970466,1746455443523,-400.0,0.00035616,14]
[359970467,1746455443532,-525.79789111,0.00035616,14]
[359970468,1746455443542,-400.0,0.00035616,14]
[359970469,1746455443551,-400.0,0.00035616,14]
[359970470,1746455443561,-302.94783816,0.00035616,14]
[359970471,1746455443571,-400.0,0.00035616,14]
[359970472,1746455443581,-400.0,0.00035616,14]
[359970473,1746455443590,-400.0,0.00035616,14]
[359970474,1746455443599,-400.0,0.00035616,14]
[359970475,1746455443609,-900.54,0.00035616,14]
[359970476,1746455443619,-400.0,0.00035616,14]
[359970477,1746455443629,-400.0,0.00035616,14]
[359970478,1746455443638,-400.0,0.00035616,14]
[359970479,1746455443648,-528.04361022,0.00035616,14]
[359970480,1746455443657,-400.0,0.00035616,14]
[359970481,1746455443666,-400.0,0.00035616,14]
[359970482,1746455443676,-400.0,0.00035616,14]
[359970483,1746455443686,-400.0,0.00035616,14]
[359970484,1746455443695,-540.97466978,0.00035616,14]
[359970485,1746455443705,-400.0,0.00035616,14]
[359970486,1746455443715,-426.01,0.00035616,14]
[359970487,1746455443724,-678.57,0.00035616,14]
[359970488,1746455443734,-400.0,0.00035616,14]
[359970489,1746455443744,-400.0,0.00035616,14]
[359970490,1746455443753,-400.0,0.00035616,14]
[359970491,1746455443763,-400.0,0.00035616,14]
[359970492,1746455443772,-400.0,0.00035616,14]
[359970493,1746455443782,-400.0,0.00035616,14]
[359970494,1746455443792,-400.0,0.00035616,14]
[359970495,1746455443802,-178.24387212,0.00035616,14]
[359970496,1746455443811,-335.36600046,0.00035616,14]
[359970497,1746455443820,-400.0,0.00035616,14]
[359970498,1746455443829,-487.01,0.00035616,14]
[359970499,1746455443839,-400.0,0.00035616,14]
[359970500,1746455443848,-400.0,0.00035616,14]
[359970501,1746455443857,-400.0,0.00035616,14]
[359970502,1746455443866,-400.0,0.00035616,14]
[359970503,1746455443875,-319.01591048,0.00035616,14]
[359970504,1746455443885,-833.95,0.00035616,14]
[359970506,1746455443894,-400.0,0.00035616,14]
[359970508,1746455443904,-400.0,0.00035616,14]
[359970510,1746455443913,-400.0,0.00035616,14]
[359970512,1746455443923,-400.0,0.00035616,14]
[359970514,1746455443932,-935.72,0.00035616,14]
[359970516,1746455443942,-400.0,0.00035616,14]
[359970519,1746455443951,-203.44410118,0.00035616,14]
[359970521,1746455443961,-400.0,0.00035616,14]
[359970525,1746455443971,-400.0,0.00035616,14]
[359970528,1746455443980,-1640.44,0.00035616,14]
[359970529,1746455443990,-400.0,0.00035616,14]
[359970530,1746455443999,-441.4316172,0.00035616,14]
[359970571,1746455446683,-37.70416427,0.00035616,14]
[359970572,1746455446744,-285.70421853,0.00035616,14]
[359970573,1746455446754,-863.4,0.00035616,14]
[359970574,1746455446764,-400.0,0.00035616,14]
[359970575,1746455446773,-820.69,0.00035616,14]
[359970576,1746455446783,-400.0,0.00035616,14]
[359970577,1746455446793,-1500.0,0.00035616,30]
[359970578,1746455446803,-400.0,0.00035616,14]
[359970579,1746455446812,-1003.51,0.00035616,14]
[359970580,1746455446822,-206.10300439,0.00035616,14]
[359970581,1746455446831,-400.0,0.00035616,14]
[359970583,1746455446840,-400.0,0.00035616,14]
[359970584,1746455446851,-400.0,0.00035616,14]
[359970586,1746455446994,-400.0,0.00035616,14]
[359970587,1746455447009,-400.0,0.00035616,14]
[359970588,1746455447019,-1399.45,0.00035616,14]
[359970589,1746455447028,-400.0,0.00035616,14]
[359970590,1746455447037,-400.0,0.00035616,14]
[359970591,1746455447047,-783.06,0.00035616,14]
[359970592,1746455447056,-400.0,0.00035616,14]
[359970593,1746455447065,-400.0,0.00035616,14]
[359970594,1746455447074,-400.51914964,0.00035616,14]
[359970595,1746455447085,-154.29437002,0.00035616,14]
[359970596,1746455447094,-400.0,0.00035616,14]
[359970597,1746455447103,-3139.73,0.00035616,2]
[359970598,1746455447113,-400.0,0.00035616,14]
[359970599,1746455447122,-467.3906669,0.00035616,14]
[359970600,1746455447131,-200.0,0.00035616,14]
[359970601,1746455447140,-400.0,0.00035616,14]
[359970602,1746455447149,-400.0,0.00035616,14]
[359970603,1746455447159,-323.67214338,0.00035616,14]
[359970604,1746455447168,-400.0,0.00035616,14]
[359970605,1746455447178,-400.0,0.00035616,14]
[359970606,1746455447187,-407.14652703,0.00035616,14]
[359970607,1746455447197,-400.0,0.00035616,14]
[359970608,1746455447206,-400.0,0.00035616,14]
[359970609,1746455447215,-305.49772878,0.00035616,14]
[359970610,1746455447225,-400.0,0.00035616,14]
[359970611,1746455447234,-400.0,0.00035616,14]
[359970612,1746455447245,-400.0,0.00035616,14]
[359970613,1746455447255,-400.0,0.00035616,14]
[359970614,1746455447264,-306.93288657,0.00035616,14]
[359970615,1746455447274,-510.86268837,0.00035616,14]
[359970616,1746455447283,-400.0,0.00035616,14]
[359970617,1746455447293,-400.0,0.00035616,14]
[359970618,1746455447302,-721.37,0.00035616,14]
[359970619,1746455447311,-400.0,0.00035616,14]
[359970620,1746455447320,-400.0,0.00035616,14]
[359970621,1746455447330,-203.2741198,0.00035616,14]
[359970622,1746455447340,-479.34,0.00035616,14]
[359970623,1746455447350,-507.3374092,0.00035616,14]
[359970624,1746455447359,-557.65,0.00035616,14]
[359970625,1746455447368,-400.0,0.00035616,14]
[359970626,1746455447378,-400.0,0.00035616,14]
[359970627,1746455447387,-400.0,0.00035616,14]
[359970628,1746455447397,-53.06764239,0.00035616,14]
[359970632,1746455565331,-293.1815023,0.00024051,2]
[359970633,1746455565353,-206.8184977,0.00024051,2]
[359970638,1746455631017,-43.1815023,0.00024051,2]
[359970639,1746455631038,-257.463536,0.00027397,2]
[359970640,1746455631059,-160.0,0.00031173,2]
[359970641,1746455631083,-841.77443764,0.00031173,2]
[359970642,1746455631107,-421.83547488,0.00031173,2]
[359970643,1746455631127,-182.23035355,0.00031173,2]
[359970644,1746455631150,-160.0,0.00031173,2]
[359970645,1746455631173,-7933.51469563,0.00031173,2]
[359970647,1746455720142,-182.08685211,0.00028803,2]
[359970648,1746455720319,-247.1436186,0.00028903,2]
[359970649,1746455720341,-160.0,0.00031173,2]
[359970650,1746455720362,-160.0,0.00031173,2]
[359970651,1746455720383,-413.64508975,0.00031955,2]
[359970652,1746455731379,-421.83547488,0.00032139,2]
[359970653,1746455731402,-1200.0,0.00032198,3]
[359970654,1746455731423,-400.0,0.00032198,3]
[359970655,1746455731446,-157.65,0.00032199,2]
[359970656,1746455731466,-309.50798866,0.00032199,2]
[359970657,1746455731488,-439.20912133,0.00032199,2]
[359970658,1746455731520,-500.0,0.00032199,2]
[359970659,1746455731552,-500.0,0.00032199,2]
[359970660,1746455731584,-500.0,0.00032199,2]
[359970661,1746455731617,-500.0,0.00032199,2]
[359970662,1746455731649,-500.0,0.00032199,2]
[359970663,1746455731823,-303.30322946,0.00032199,2]
[359970664,1746455731858,-500.0,0.00032199,2]
[359970665,1746455731892,-500.0,0.00032199,2]
[359970666,1746455731927,-500.0,0.00032199,2]
[359970667,1746455731961,-500.0,0.00032199,2]
[359970668,1746455731994,-500.0,0.00032199,2]
[359970669,1746455732028,-500.0,0.00032199,2]
[359970670,1746455732061,-105.61862521,0.00032199,2]
[359970673,1746455924904,295.33,0.00022,30]
[359970675,1746456007759,400.0,0.00018101,2]
[359970680,1746456367248,355.2,0.00021,10]
[359970686,1746456426144,-432.26115416,0.000268,2]
[359970687,1746456437117,-160.0,0.00026788,2]
[359970688,1746456437139,-313.02309125,0.000268,2]
[359970689,1746456438105,-647.89403996,0.000268,2]
[359970690,1746456438127,-10.63818595,0.000269,2]
[359970691,1746456454120,-189.4961431,0.000269,2]
[359970692,1746456454141,-1000.0,0.000269,2]
[359970693,1746456454162,-192.5260387,0.00028903,2]
[359970694,1746456454183,-451.5969104,0.00029241,2]
[359970695,1746456454203,-606.13831531,0.00029315,2]
[359970696,1746456454224,-300.0,0.00029525,2]
[359970697,1746456454245,-300.0,0.00029525,2]
[359970698,1746456454266,-1765.92170847,0.00029526,2]
[359970700,1746456545147,-200.13432905,0.00026691,2]
[359970701,1746456545168,-1000.0,0.00026691,2]
[359970702,1746456545188,-250.0,0.00026694,2]
[359970703,1746456545207,-2738.60168223,0.00029526,2]
[359970704,1746456545227,-162.4838699,0.00029974,2]
[359970705,1746456545246,-288.42308172,0.00030099,2]
[359970706,1746456545267,-160.0,0.00031456,2]
[359970707,1746456545286,-182.23035355,0.00031456,2]
[359970708,1746456545305,-160.0,0.00031456,2]
[359970709,1746456545325,-421.83547488,0.00031456,2]
[359970710,1746456545346,-12607.13495863,0.00031456,2]
[359970711,1746456545379,-500.0,0.00031532,2]
[359970712,1746456545411,-500.0,0.00031532,2]
[359970713,1746456545443,-500.0,0.00031532,2]
[359970714,1746456545473,-485.27356026,0.00031532,2]
[359970715,1746456545502,-500.0,0.00031532,2]
[359970716,1746456545532,-500.0,0.00031532,2]
[359970717,1746456545562,-267.81447837,0.00031532,2]
[359970718,1746456551116,-232.18552163,0.00031532,2]
[359970719,1746456551149,-500.0,0.00031532,2]
[359970720,1746456551181,-500.0,0.00031532,2]
[359970721,1746456551214,-498.33793912,0.00031532,2]
[359970722,1746456551350,-1.66206088,0.00031532,2]
[359970723,1746456551382,-500.0,0.00031532,2]
[359970724,1746456551415,-500.0,0.00031532,2]
[359970725,1746456551444,-500.0,0.00031532,2]
[359970726,1746456551473,-500.0,0.00031532,2]
[359970727,1746456551504,-500.0,0.00031532,2]
[359970728,1746456551533,-353.42954425,0.00031532,2]
[359970729,1746456555195,-1200.13432905,0.00026691,2]
[359970730,1746456555228,-146.57045575,0.00031532,2]
[359970731,1746456555260,-500.0,0.00031532,2]
[359970732,1746456555291,-500.0,0.00031532,2]
[359970733,1746456555324,-500.0,0.00031532,2]
[359970734,1746456555346,-841.77443764,0.00031533,2]
[359970735,1746456555369,-152.0,0.00031746,2]
[359970736,1746456555393,-268.81560919,0.000319,25]
[359970741,1746456604381,1000.0,0.00026591,2]
[359970742,1746456607552,250.0,0.00026591,2]
[359970743,1746456614818,398.25925694,0.00031532,2]
[359970744,1746456614841,23.57621794,0.00031532,2]
[359970785,1746456631789,-24900.0,0.0003271,2]
[359970787,1746456631800,-12607.13495863,0.0003271,2]
[359970788,1746456631810,-182.23035355,0.0003271,2]
[359970789,1746456631820,-257.463536,0.00033165,2]
[359970790,1746456631830,-293.64318526,0.00033304,2]
[359970791,1746456631840,-188.5660011,0.00033306,35]
[359970792,1746456631850,-259.85508899,0.000339,29]
[359970793,1746456631859,-160.0,0.00034099,3]
[359970794,1746456631869,-259.85508877,0.00034107,30]
[359970795,1746456631879,-259.85508877,0.00034314,30]
[359970796,1746456631888,-156.8881294,0.00034355,4]
[359970797,1746456631898,-3000.0,0.000345,10]
[359970798,1746456631908,-194.0,0.00034518,2]
[359970799,1746456631918,-259.85508877,0.00034521,31]
[359970800,1746456631928,-152.94150848,0.00034559,2]
[359970801,1746456631938,-152.94150848,0.00034559,2]
[359970802,1746456631948,-259.85508877,0.00034728,31]
[359970803,1746456631958,-397.74728842,0.000349,2]
[359970804,1746456631967,-259.85508877,0.00034934,31]
[359970805,1746456631977,-226.938,0.00034988,2]
[359970806,1746456631986,-708.0,0.00034988,2]
[359970807,1746456631996,-2242.0,0.00034988,2]
[359970808,1746456632006,-3545.78390774,0.00034989,2]
[359970809,1746456632060,-52.55812125,0.00034989,2]
[359970810,1746456632118,-35027.55036101,0.00034989,2]
[359970811,1746456632128,-4368.32739566,0.0003499,2]
[359970812,1746456632138,-1166.15144374,0.0003499,2]
[359970813,1746456632147,-485.13,0.0003499,3]
[359970814,1746456632157,-242.56,0.0003499,3]
[359970815,1746456632166,-65012.76950703,0.00035,2]
[359970863,1746456637947,-150.0,0.00034988,2]
[359970865,1746456637957,-389.25127012,0.00034988,7]
[359970867,1746456637966,-355.85192171,0.00034988,7]
[359970869,1746456637978,-144.14807829,0.00034988,7]
[359970871,1746456637988,-290.66562619,0.00034988,7]
[359970873,1746456638000,-131.72726056,0.00034988,7]
[359970876,1746456638010,-2500.8274349,0.00035,2]
[359970915,1746456639256,-19748.655,0.00035,2]
[359970946,1746456643026,-841.77443764,0.0003271,2]
[359970947,1746456643036,-547.10421434,0.00034855,2]
[359970948,1746456643047,-12737.74805807,0.00035,2]